[Event "Titled Tuesday Blitz March 28 Late 2023"]
[White "Krishnan, Varun"]
[Black "Necula, Iulian"]
[WhiteFideId "5054508"]
[BlackFideId "1232380"]
[WhiteElo "2524"]
[BlackElo "1790"]
[Result "1-0"]
[Round "03"]
[TimeControl "180+2"]
[Date "2023.03.28"]
[WhiteClock "0:00:17"]
[BlackClock "0:00:08"]

1. d4 {[%clk 0:03:00]}  d6 {[%clk 0:03:00]} 2. e4 {[%clk 0:02:56]}  Nf6 {[%clk 0:03:00]} 3. Nc3 {[%clk 0:02:56]}  e5 {[%clk 0:03:00]} 4. Nf3 {[%clk 0:02:55]}  Nbd7 {[%clk 0:02:59]} 5. Bc4 {[%clk 0:02:54]}  Be7 {[%clk 0:02:59]} 6. O-O {[%clk 0:02:54]}  h6 {[%clk 0:02:59]} 7. a4 {[%clk 0:02:50]}  c6 {[%clk 0:02:58]} 8. a5 {[%clk 0:02:48]}  Qc7 {[%clk 0:02:58]} 9. h3 {[%clk 0:02:44]}  g5 {[%clk 0:02:56]} 10. dxe5 {[%clk 0:02:35]}  dxe5 {[%clk 0:02:56]} 11. Nh2 {[%clk 0:02:24]}  Nf8 {[%clk 0:02:44]} 12. Ng4 {[%clk 0:02:10]}  Nxg4 {[%clk 0:02:27]} 13. hxg4 {[%clk 0:02:11]}  Ng6 {[%clk 0:02:27]} 14. g3 {[%clk 0:02:07]}  O-O {[%clk 0:02:11]} 15. Kg2 {[%clk 0:01:57]}  Kg7 {[%clk 0:02:11]} 16. Be3 {[%clk 0:01:52]}  Qd7 {[%clk 0:01:59]} 17. Qxd7 {[%clk 0:01:49]}  Bxd7 {[%clk 0:02:00]} 18. f3 {[%clk 0:01:41]}  Bb4 {[%clk 0:01:49]} 19. Ne2 {[%clk 0:01:39]}  Be6 {[%clk 0:01:29]} 20. Bxe6 {[%clk 0:01:34]}  fxe6 {[%clk 0:01:30]} 21. c3 {[%clk 0:01:33]}  Be7 {[%clk 0:01:27]} 22. Rfd1 {[%clk 0:01:31]}  Rfd8 {[%clk 0:01:23]} 23. b4 {[%clk 0:01:18]}  Nf8 {[%clk 0:01:09]} 24. Rab1 {[%clk 0:01:08]}  a6 {[%clk 0:01:08]} 25. Bc5 {[%clk 0:01:00]}  Rxd1 {[%clk 0:00:56]} 26. Rxd1 {[%clk 0:00:59]}  Rd8 {[%clk 0:00:57]} 27. Rxd8 {[%clk 0:00:55]}  Bxd8 {[%clk 0:00:57]} 28. Nc1 {[%clk 0:00:43]}  Nd7 {[%clk 0:00:56]} 29. Bd6 {[%clk 0:00:42]}  Kf7 {[%clk 0:00:54]} 30. Nd3 {[%clk 0:00:41]}  Be7 {[%clk 0:00:54]} 31. Bxe5 {[%clk 0:00:32]}  c5 {[%clk 0:00:50]} 32. Bc7 {[%clk 0:00:27]}  cxb4 {[%clk 0:00:49]} 33. cxb4 {[%clk 0:00:28]}  Kf6 {[%clk 0:00:45]} 34. f4 {[%clk 0:00:28]}  e5 {[%clk 0:00:24]} 35. Nxe5 {[%clk 0:00:20]}  Nxe5 {[%clk 0:00:23]} 36. Bxe5+ {[%clk 0:00:21]}  Kg6 {[%clk 0:00:21]} 37. Bc3 {[%clk 0:00:22]}  h5 {[%clk 0:00:15]} 38. f5+ {[%clk 0:00:19]}  Kh6 {[%clk 0:00:12]} 39. f6 {[%clk 0:00:19]}  Bf8 {[%clk 0:00:11]} 40. e5 {[%clk 0:00:19]}  Kg6 {[%clk 0:00:11]} 41. e6 {[%clk 0:00:18]}  hxg4 {[%clk 0:00:10]} 42. e7 {[%clk 0:00:18]}  Kf7 {[%clk 0:00:09]} 43. exf8=Q+ {[%clk 0:00:17]}  Kxf8 {[%clk 0:00:10]} 44. Bd2 {[%clk 0:00:17]}  Kf7 {[%clk 0:00:09]} 45. Bxg5 {[%clk 0:00:17]}  Kg6 {[%clk 0:00:08]} 46. Kf2 {[%clk 0:00:17]} 1-0


[Site "https://www.chess.com"]

[Event "Titled Tuesday Blitz March 28 Late 2023"]
[White "Vargas, Mauricio"]
[Black "Pirvulescu, Ekaterina"]
[WhiteFideId "4404572"]
[BlackFideId "13506374"]
[WhiteElo "2025"]
[BlackElo "2006"]
[Result "0-1"]
[Round "03"]
[TimeControl "180+2"]
[Date "2023.03.28"]
[WhiteClock "0:00:02"]
[BlackClock "0:00:26"]

1. e4 {[%clk 0:02:59]}  Nf6 {[%clk 0:02:57]} 2. e5 {[%clk 0:02:58]}  Nd5 {[%clk 0:02:56]} 3. Nc3 {[%clk 0:02:54]}  Nxc3 {[%clk 0:02:53]} 4. dxc3 {[%clk 0:02:54]}  g6 {[%clk 0:02:52]} 5. Bc4 {[%clk 0:02:54]}  Bg7 {[%clk 0:02:51]} 6. Bg5 {[%clk 0:02:42]}  O-O {[%clk 0:02:47]} 7. Qd2 {[%clk 0:02:42]}  Bxe5 {[%clk 0:02:40]} 8. O-O-O {[%clk 0:02:39]}  Bg7 {[%clk 0:02:38]} 9. h4 {[%clk 0:02:38]}  Qe8 {[%clk 0:02:16]} 10. Nf3 {[%clk 0:02:35]}  e6 {[%clk 0:02:12]} 11. h5 {[%clk 0:02:34]}  d5 {[%clk 0:02:07]} 12. Bd3 {[%clk 0:02:25]}  f6 {[%clk 0:01:49]} 13. Bh6 {[%clk 0:02:13]}  g5 {[%clk 0:01:47]} 14. Bxg7 {[%clk 0:02:11]}  Kxg7 {[%clk 0:01:47]} 15. h6+ {[%clk 0:02:10]}  Kh8 {[%clk 0:01:47]} 16. Rde1 {[%clk 0:02:07]}  Nc6 {[%clk 0:01:44]} 17. c4 {[%clk 0:01:58]}  dxc4 {[%clk 0:01:31]} 18. Bxc4 {[%clk 0:01:54]}  Qd8 {[%clk 0:01:26]} 19. Qc3 {[%clk 0:01:53]}  e5 {[%clk 0:01:16]} 20. Rd1 {[%clk 0:01:41]}  Qe7 {[%clk 0:01:15]} 21. a3 {[%clk 0:01:37]}  Bg4 {[%clk 0:01:13]} 22. Bd5 {[%clk 0:01:04]}  Bxf3 {[%clk 0:01:02]} 23. Bxf3 {[%clk 0:01:00]}  Nd4 {[%clk 0:01:02]} 24. Bh5 {[%clk 0:00:36]}  Rad8 {[%clk 0:00:57]} 25. Rhe1 {[%clk 0:00:35]}  Qd6 {[%clk 0:00:45]} 26. Qb3 {[%clk 0:00:19]}  Nxb3+ {[%clk 0:00:41]} 27. cxb3 {[%clk 0:00:20]}  Qc6+ {[%clk 0:00:40]} 28. Kb1 {[%clk 0:00:20]}  Rxd1+ {[%clk 0:00:39]} 29. Rxd1 {[%clk 0:00:20]}  f5 {[%clk 0:00:36]} 30. Bf3 {[%clk 0:00:16]}  Qxh6 {[%clk 0:00:35]} 31. g3 {[%clk 0:00:14]}  e4 {[%clk 0:00:34]} 32. Rh1 {[%clk 0:00:12]}  Qxh1+ {[%clk 0:00:31]} 33. Bxh1 {[%clk 0:00:12]}  Rd8 {[%clk 0:00:30]} 34. Kc2 {[%clk 0:00:10]}  Kg7 {[%clk 0:00:29]} 35. Bg2 {[%clk 0:00:10]}  Kf6 {[%clk 0:00:29]} 36. g4 {[%clk 0:00:06]}  Ke5 {[%clk 0:00:27]} 37. gxf5 {[%clk 0:00:05]}  Kxf5 {[%clk 0:00:27]} 38. Bh3+ {[%clk 0:00:04]}  Kf4 {[%clk 0:00:26]} 39. Bg2 {[%clk 0:00:02]}  h5 {[%clk 0:00:26]} 0-1


[Site "https://www.chess.com"]

[Event "Titled Tuesday Blitz March 28 Late 2023"]
[White "Ansh M Shah"]
[Black "Gokerkan, Cem Kaan"]
[WhiteFideId "25033379"]
[BlackFideId "6336760"]
[WhiteElo "2084"]
[BlackElo "2365"]
[Result "0-1"]
[Round "03"]
[TimeControl "180+2"]
[Date "2023.03.28"]
[WhiteClock "0:00:01"]
[BlackClock "0:00:05"]

1. d4 {[%clk 0:03:00]}  Nf6 {[%clk 0:03:00]} 2. c4 {[%clk 0:03:01]}  g6 {[%clk 0:03:00]} 3. h4 {[%clk 0:03:02]}  Bg7 {[%clk 0:02:55]} 4. Nc3 {[%clk 0:03:01]}  c5 {[%clk 0:02:50]} 5. d5 {[%clk 0:03:01]}  e6 {[%clk 0:02:51]} 6. e4 {[%clk 0:03:00]}  exd5 {[%clk 0:02:51]} 7. exd5 {[%clk 0:03:01]}  d6 {[%clk 0:02:50]} 8. Be2 {[%clk 0:03:01]}  O-O {[%clk 0:02:47]} 9. h5 {[%clk 0:03:01]}  Re8 {[%clk 0:02:47]} 10. Kf1 {[%clk 0:03:01]}  a6 {[%clk 0:02:38]} 11. a4 {[%clk 0:03:00]}  Nbd7 {[%clk 0:02:36]} 12. h6 {[%clk 0:02:59]}  Bh8 {[%clk 0:02:36]} 13. Bf4 {[%clk 0:03:00]}  Ne5 {[%clk 0:02:34]} 14. Nf3 {[%clk 0:03:01]}  Nxf3 {[%clk 0:02:21]} 15. Bxf3 {[%clk 0:03:01]}  Qb6 {[%clk 0:02:21]} 16. Ra3 {[%clk 0:03:01]}  Nd7 {[%clk 0:02:15]} 17. a5 {[%clk 0:02:58]}  Qc7 {[%clk 0:02:15]} 18. g3 {[%clk 0:02:53]}  Ne5 {[%clk 0:02:13]} 19. Be2 {[%clk 0:02:44]}  b6 {[%clk 0:02:10]} 20. axb6 {[%clk 0:02:43]}  Qxb6 {[%clk 0:02:11]} 21. Rb3 {[%clk 0:02:43]}  Qd8 {[%clk 0:02:08]} 22. Kg2 {[%clk 0:02:42]}  Bf5 {[%clk 0:01:58]} 23. Bxe5 {[%clk 0:02:14]}  Bxe5 {[%clk 0:01:53]} 24. Bg4 {[%clk 0:02:15]}  Qg5 {[%clk 0:01:42]} 25. Bxf5 {[%clk 0:02:14]}  Qxf5 {[%clk 0:01:43]} 26. Qf3 {[%clk 0:02:08]}  Qxf3+ {[%clk 0:01:13]} 27. Kxf3 {[%clk 0:02:09]}  Reb8 {[%clk 0:01:13]} 28. Rxb8+ {[%clk 0:02:08]}  Rxb8 {[%clk 0:01:14]} 29. Ra1 {[%clk 0:02:07]}  Rb6 {[%clk 0:01:15]} 30. Ra2 {[%clk 0:01:17]}  f5 {[%clk 0:01:13]} 31. Ke2 {[%clk 0:01:15]}  g5 {[%clk 0:01:07]} 32. Kd3 {[%clk 0:01:13]}  Kf7 {[%clk 0:01:04]} 33. Kc2 {[%clk 0:01:08]}  Bxc3 {[%clk 0:00:53]} 34. Kxc3 {[%clk 0:01:07]}  Kg6 {[%clk 0:00:53]} 35. Ra1 {[%clk 0:00:59]}  Kxh6 {[%clk 0:00:52]} 36. Re1 {[%clk 0:00:59]}  Kh5 {[%clk 0:00:46]} 37. f3 {[%clk 0:00:59]}  a5 {[%clk 0:00:35]} 38. b3 {[%clk 0:00:54]}  f4 {[%clk 0:00:14]} 39. Rh1+ {[%clk 0:00:52]}  Kg6 {[%clk 0:00:14]} 40. gxf4 {[%clk 0:00:53]}  gxf4 {[%clk 0:00:15]} 41. Rh4 {[%clk 0:00:53]}  h5 {[%clk 0:00:12]} 42. Rxf4 {[%clk 0:00:53]}  Rb7 {[%clk 0:00:09]} 43. Rf8 {[%clk 0:00:41]}  Rf7 {[%clk 0:00:09]} 44. Rg8+ {[%clk 0:00:36]}  Kh6 {[%clk 0:00:07]} 45. Rg3 {[%clk 0:00:24]}  h4 {[%clk 0:00:06]} 46. Rh3 {[%clk 0:00:25]}  Kg5 {[%clk 0:00:07]} 47. Kd3 {[%clk 0:00:25]}  Re7 {[%clk 0:00:05]} 48. Rh1 {[%clk 0:00:23]}  Rf7 {[%clk 0:00:04]} 49. Ke4 {[%clk 0:00:23]}  Re7+ {[%clk 0:00:04]} 50. Kd3 {[%clk 0:00:23]}  Rb7 {[%clk 0:00:05]} 51. Rg1+ {[%clk 0:00:08]}  Kf5 {[%clk 0:00:05]} 52. Rg4 {[%clk 0:00:07]}  Rh7 {[%clk 0:00:03]} 53. Ke2 {[%clk 0:00:06]}  h3 {[%clk 0:00:04]} 54. Rg1 {[%clk 0:00:05]}  h2 {[%clk 0:00:05]} 55. Rh1 {[%clk 0:00:06]}  Kf4 {[%clk 0:00:04]} 56. Kf2 {[%clk 0:00:06]}  Rh6 {[%clk 0:00:04]} 57. Kg2 {[%clk 0:00:07]}  Rh7 {[%clk 0:00:04]} 58. Kf2 {[%clk 0:00:06]}  Rh3 {[%clk 0:00:03]} 59. Kg2 {[%clk 0:00:06]}  Rg3+ {[%clk 0:00:02]} 60. Kxh2 {[%clk 0:00:06]}  Rxf3 {[%clk 0:00:03]} 61. Ra1 {[%clk 0:00:06]}  Rxb3 {[%clk 0:00:03]} 62. Rxa5 {[%clk 0:00:07]}  Rb4 {[%clk 0:00:03]} 63. Ra6 {[%clk 0:00:06]}  Ke5 {[%clk 0:00:03]} 64. Kg3 {[%clk 0:00:04]}  Rxc4 {[%clk 0:00:03]} 65. Kf2 {[%clk 0:00:05]}  Kxd5 {[%clk 0:00:04]} 66. Ke3 {[%clk 0:00:05]}  Rc3+ {[%clk 0:00:04]} 67. Kd2 {[%clk 0:00:05]}  Rh3 {[%clk 0:00:05]} 68. Ra8 {[%clk 0:00:05]}  Kd4 {[%clk 0:00:05]} 69. Rd8 {[%clk 0:00:05]}  Rh2+ {[%clk 0:00:05]} 70. Kc1 {[%clk 0:00:05]}  d5 {[%clk 0:00:06]} 71. Rg8 {[%clk 0:00:05]}  c4 {[%clk 0:00:07]} 72. Rg4+ {[%clk 0:00:05]}  Kc5 {[%clk 0:00:07]} 73. Rg5 {[%clk 0:00:05]}  Rf2 {[%clk 0:00:06]} 74. Kd1 {[%clk 0:00:05]}  Ra2 {[%clk 0:00:06]} 75. Kc1 {[%clk 0:00:05]}  Kd4 {[%clk 0:00:06]} 76. Rg4+ {[%clk 0:00:02]}  Kc3 {[%clk 0:00:07]} 77. Rg3+ {[%clk 0:00:03]}  Kb4 {[%clk 0:00:07]} 78. Rg5 {[%clk 0:00:02]}  d4 {[%clk 0:00:07]} 79. Rg3 {[%clk 0:00:02]}  d3 {[%clk 0:00:07]} 80. Kb1 {[%clk 0:00:02]}  Rh2 {[%clk 0:00:07]} 81. Rg1 {[%clk 0:00:01]}  Kb3 {[%clk 0:00:06]} 82. Rc1 {[%clk 0:00:01]}  c3 {[%clk 0:00:05]} 83. Rd1 {[%clk 0:00:01]}  c2+ {[%clk 0:00:05]} 0-1


[Site "https://www.chess.com"]

[Event "Titled Tuesday Blitz March 28 Late 2023"]
[White "Figorito, Nick"]
[Black "Domingo Nunez, Ruben"]
[WhiteFideId "30923689"]
[BlackFideId "22245570"]
[WhiteElo "2340"]
[BlackElo "2404"]
[Result "0-1"]
[Round "03"]
[TimeControl "180+2"]
[Date "2023.03.28"]
[WhiteClock "0:00:05"]
[BlackClock "0:00:24"]

1. Nf3 {[%clk 0:03:00]}  g6 {[%clk 0:02:57]} 2. g3 {[%clk 0:03:01]}  Bg7 {[%clk 0:02:58]} 3. Bg2 {[%clk 0:03:01]}  d6 {[%clk 0:02:59]} 4. O-O {[%clk 0:03:02]}  Nf6 {[%clk 0:03:00]} 5. c4 {[%clk 0:03:02]}  O-O {[%clk 0:03:01]} 6. Nc3 {[%clk 0:03:03]}  Bd7 {[%clk 0:03:02]} 7. Rb1 {[%clk 0:03:02]}  Bc6 {[%clk 0:03:03]} 8. b4 {[%clk 0:03:02]}  b6 {[%clk 0:03:03]} 9. b5 {[%clk 0:03:02]}  Bb7 {[%clk 0:03:04]} 10. a4 {[%clk 0:03:02]}  Nbd7 {[%clk 0:03:05]} 11. Bb2 {[%clk 0:03:02]}  Nc5 {[%clk 0:03:05]} 12. a5 {[%clk 0:03:00]}  bxa5 {[%clk 0:03:05]} 13. Na4 {[%clk 0:02:59]}  Nxa4 {[%clk 0:02:58]} 14. Qxa4 {[%clk 0:03:00]}  a6 {[%clk 0:02:59]} 15. Qxa5 {[%clk 0:02:56]}  axb5 {[%clk 0:02:59]} 16. Qxb5 {[%clk 0:02:57]}  Rb8 {[%clk 0:03:00]} 17. Qa4 {[%clk 0:02:54]}  Ra8 {[%clk 0:03:00]} 18. Qb5 {[%clk 0:02:54]}  Ba6 {[%clk 0:03:00]} 19. Qb3 {[%clk 0:02:53]}  Qd7 {[%clk 0:02:59]} 20. d3 {[%clk 0:02:49]}  Rfb8 {[%clk 0:02:57]} 21. Qc2 {[%clk 0:02:49]}  Bb7 {[%clk 0:02:57]} 22. Bc3 {[%clk 0:02:46]}  Bc6 {[%clk 0:02:38]} 23. Rxb8+ {[%clk 0:02:44]}  Rxb8 {[%clk 0:02:39]} 24. Rb1 {[%clk 0:02:44]}  Ra8 {[%clk 0:02:38]} 25. Ra1 {[%clk 0:02:42]}  Re8 {[%clk 0:02:34]} 26. Ra7 {[%clk 0:02:39]}  e5 {[%clk 0:02:34]} 27. e4 {[%clk 0:02:20]}  Rb8 {[%clk 0:02:29]} 28. h3 {[%clk 0:02:10]}  Qc8 {[%clk 0:02:28]} 29. Ra2 {[%clk 0:02:02]}  Nd7 {[%clk 0:02:28]} 30. Rb2 {[%clk 0:01:59]}  Ra8 {[%clk 0:02:28]} 31. Ra2 {[%clk 0:01:59]}  Rxa2 {[%clk 0:02:28]} 32. Qxa2 {[%clk 0:01:59]}  Nc5 {[%clk 0:02:29]} 33. Bf1 {[%clk 0:01:53]}  f5 {[%clk 0:02:27]} 34. Nd2 {[%clk 0:01:40]}  fxe4 {[%clk 0:02:18]} 35. dxe4 {[%clk 0:01:38]}  Nxe4 {[%clk 0:02:19]} 36. Nxe4 {[%clk 0:01:34]}  Bxe4 {[%clk 0:02:20]} 37. Bg2 {[%clk 0:01:21]}  Bxg2 {[%clk 0:02:16]} 38. Kxg2 {[%clk 0:01:21]}  Qb7+ {[%clk 0:02:17]} 39. Kg1 {[%clk 0:01:18]}  Qc6 {[%clk 0:01:59]} 40. Kh2 {[%clk 0:01:07]}  Qf3 {[%clk 0:01:55]} 41. Ba5 {[%clk 0:01:01]}  Qc6 {[%clk 0:01:50]} 42. Bd2 {[%clk 0:00:49]}  Bf6 {[%clk 0:01:50]} 43. Be3 {[%clk 0:00:48]}  Kg7 {[%clk 0:01:50]} 44. h4 {[%clk 0:00:48]}  h5 {[%clk 0:01:49]} 45. Kg1 {[%clk 0:00:47]}  Qe4 {[%clk 0:01:46]} 46. Kh2 {[%clk 0:00:45]}  Kh7 {[%clk 0:01:25]} 47. Kg1 {[%clk 0:00:45]}  Bg7 {[%clk 0:01:25]} 48. Kh2 {[%clk 0:00:45]}  c6 {[%clk 0:01:24]} 49. Qd2 {[%clk 0:00:32]}  d5 {[%clk 0:01:23]} 50. cxd5 {[%clk 0:00:32]}  cxd5 {[%clk 0:01:24]} 51. Bg5 {[%clk 0:00:27]}  d4 {[%clk 0:01:23]} 52. Kg1 {[%clk 0:00:26]}  Qf3 {[%clk 0:01:21]} 53. Kh2 {[%clk 0:00:20]}  Bf8 {[%clk 0:01:20]} 54. Kg1 {[%clk 0:00:18]}  Bg7 {[%clk 0:01:07]} 55. Kh2 {[%clk 0:00:17]}  e4 {[%clk 0:01:08]} 56. Kg1 {[%clk 0:00:16]}  Qf5 {[%clk 0:01:08]} 57. Qb4 {[%clk 0:00:11]}  e3 {[%clk 0:00:57]} 58. fxe3 {[%clk 0:00:10]}  d3 {[%clk 0:00:57]} 59. Qd6 {[%clk 0:00:06]}  Qb5 {[%clk 0:00:46]} 60. e4 {[%clk 0:00:03]}  Qb1+ {[%clk 0:00:46]} 61. Kg2 {[%clk 0:00:03]}  Qc2+ {[%clk 0:00:46]} 62. Kg1 {[%clk 0:00:03]}  Qe2 {[%clk 0:00:45]} 63. e5 {[%clk 0:00:03]}  Qe4 {[%clk 0:00:25]} 64. Bf6 {[%clk 0:00:02]}  Qe3+ {[%clk 0:00:23]} 65. Kg2 {[%clk 0:00:02]}  Qe2+ {[%clk 0:00:23]} 66. Kg1 {[%clk 0:00:03]}  d2 {[%clk 0:00:24]} 67. Qd7 {[%clk 0:00:02]}  d1=Q+ {[%clk 0:00:24]} 68. Qxd1 {[%clk 0:00:03]}  Qxd1+ {[%clk 0:00:24]} 69. Kg2 {[%clk 0:00:04]}  Bxf6 {[%clk 0:00:24]} 70. exf6 {[%clk 0:00:05]}  Qd5+ {[%clk 0:00:24]} 71. Kh3 {[%clk 0:00:05]}  Qh1# {[%clk 0:00:24]} 0-1


[Site "https://www.chess.com"]

[Event "Titled Tuesday Blitz March 28 Late 2023"]
[White "Eggleston, Thomas A"]
[Black "Ismagilov, Damir"]
[WhiteFideId "412139"]
[BlackFideId "34199982"]
[WhiteElo "2155"]
[BlackElo "2078"]
[Result "0-1"]
[Round "03"]
[TimeControl "180+2"]
[Date "2023.03.28"]
[WhiteClock "0:00:04"]
[BlackClock "0:01:32"]

1. e4 {[%clk 0:03:00]}  e5 {[%clk 0:02:59]} 2. f4 {[%clk 0:03:00]}  d6 {[%clk 0:02:55]} 3. Bc4 {[%clk 0:02:57]}  Nc6 {[%clk 0:02:53]} 4. Nc3 {[%clk 0:02:50]}  Nf6 {[%clk 0:02:53]} 5. Nf3 {[%clk 0:02:49]}  Bg4 {[%clk 0:02:49]} 6. O-O {[%clk 0:02:35]}  Be7 {[%clk 0:02:49]} 7. h3 {[%clk 0:02:19]}  Bxf3 {[%clk 0:02:48]} 8. Qxf3 {[%clk 0:02:19]}  Nd4 {[%clk 0:02:48]} 9. Qd1 {[%clk 0:02:19]}  O-O {[%clk 0:02:47]} 10. d3 {[%clk 0:02:15]}  c6 {[%clk 0:02:47]} 11. f5 {[%clk 0:02:14]}  d5 {[%clk 0:02:47]} 12. Bb3 {[%clk 0:02:14]}  dxe4 {[%clk 0:02:47]} 13. dxe4 {[%clk 0:02:14]}  Bb4 {[%clk 0:02:42]} 14. Qd3 {[%clk 0:02:02]}  Nxb3 {[%clk 0:02:22]} 15. axb3 {[%clk 0:01:58]}  Qxd3 {[%clk 0:02:22]} 16. cxd3 {[%clk 0:01:58]}  a6 {[%clk 0:02:22]} 17. Be3 {[%clk 0:01:53]}  Rfd8 {[%clk 0:02:22]} 18. Rfd1 {[%clk 0:01:52]}  Rd6 {[%clk 0:02:20]} 19. Rd2 {[%clk 0:01:37]}  Rad8 {[%clk 0:02:18]} 20. Rad1 {[%clk 0:01:37]}  h6 {[%clk 0:02:14]} 21. g4 {[%clk 0:01:36]}  Nd7 {[%clk 0:02:11]} 22. Kf2 {[%clk 0:01:18]}  Bc5 {[%clk 0:02:00]} 23. Na2 {[%clk 0:01:01]}  Bxe3+ {[%clk 0:01:54]} 24. Kxe3 {[%clk 0:01:01]}  Nc5 {[%clk 0:01:54]} 25. Nc1 {[%clk 0:01:01]}  Rd4 {[%clk 0:01:53]} 26. h4 {[%clk 0:00:52]}  g6 {[%clk 0:01:49]} 27. fxg6 {[%clk 0:00:28]}  fxg6 {[%clk 0:01:49]} 28. Rc2 {[%clk 0:00:23]}  Nxe4 {[%clk 0:01:47]} 29. Rf1 {[%clk 0:00:18]}  Ng3 {[%clk 0:01:39]} 30. Rf3 {[%clk 0:00:16]}  Rxg4 {[%clk 0:01:38]} 31. Rc5 {[%clk 0:00:12]}  Nf5+ {[%clk 0:01:38]} 32. Kd2 {[%clk 0:00:11]}  Nd4 {[%clk 0:01:35]} 33. Rf2 {[%clk 0:00:09]}  Rg1 {[%clk 0:01:34]} 34. Rxe5 {[%clk 0:00:07]}  Rf8 {[%clk 0:01:32]} 35. Rxf8+ {[%clk 0:00:05]}  Kxf8 {[%clk 0:01:33]} 36. b4 {[%clk 0:00:04]}  Nf3+ {[%clk 0:01:32]} 0-1


[Site "https://www.chess.com"]

[Event "Titled Tuesday Blitz March 28 Late 2023"]
[White "Coelho, Ramyres Santana"]
[Black "Foerster-Yialamas, Lucas"]
[WhiteFideId "2120690"]
[BlackFideId "30901774"]
[WhiteElo "1888"]
[BlackElo "2067"]
[Result "0-1"]
[Round "03"]
[TimeControl "180+2"]
[Date "2023.03.28"]
[WhiteClock "0:00:09"]
[BlackClock "0:01:16"]

1. e4 {[%clk 0:02:59]}  c5 {[%clk 0:02:59]} 2. Nf3 {[%clk 0:03:00]}  d6 {[%clk 0:03:00]} 3. d4 {[%clk 0:03:00]}  cxd4 {[%clk 0:03:01]} 4. Nxd4 {[%clk 0:03:01]}  Nf6 {[%clk 0:03:01]} 5. Nc3 {[%clk 0:03:02]}  Nc6 {[%clk 0:03:02]} 6. f3 {[%clk 0:03:00]}  e5 {[%clk 0:03:00]} 7. Nb3 {[%clk 0:03:00]}  a6 {[%clk 0:02:59]} 8. Be3 {[%clk 0:03:01]}  Be7 {[%clk 0:02:59]} 9. Qd2 {[%clk 0:03:01]}  Be6 {[%clk 0:03:00]} 10. O-O-O {[%clk 0:03:02]}  Rc8 {[%clk 0:02:57]} 11. g4 {[%clk 0:03:02]}  h6 {[%clk 0:02:57]} 12. h4 {[%clk 0:03:02]}  Na5 {[%clk 0:02:57]} 13. Nxa5 {[%clk 0:02:58]}  Qxa5 {[%clk 0:02:58]} 14. a3 {[%clk 0:02:55]}  b5 {[%clk 0:02:45]} 15. Nd5 {[%clk 0:02:50]}  Qxd2+ {[%clk 0:02:28]} 16. Rxd2 {[%clk 0:02:51]}  Bxd5 {[%clk 0:02:14]} 17. exd5 {[%clk 0:02:52]}  Nd7 {[%clk 0:02:10]} 18. Bg2 {[%clk 0:02:43]}  Nc5 {[%clk 0:02:10]} 19. Bxc5 {[%clk 0:02:42]}  Rxc5 {[%clk 0:02:11]} 20. Kb1 {[%clk 0:02:30]}  g5 {[%clk 0:02:11]} 21. hxg5 {[%clk 0:02:28]}  Bxg5 {[%clk 0:02:11]} 22. Rd3 {[%clk 0:02:27]}  Ke7 {[%clk 0:02:12]} 23. Re1 {[%clk 0:02:10]}  a5 {[%clk 0:02:11]} 24. Rdd1 {[%clk 0:02:02]}  h5 {[%clk 0:02:11]} 25. Bh3 {[%clk 0:01:58]}  h4 {[%clk 0:02:11]} 26. Re4 {[%clk 0:01:55]}  Kf6 {[%clk 0:02:09]} 27. Rd3 {[%clk 0:01:36]}  Rhc8 {[%clk 0:02:09]} 28. c3 {[%clk 0:01:34]}  a4 {[%clk 0:02:08]} 29. Re2 {[%clk 0:01:29]}  Bf4 {[%clk 0:02:09]} 30. g5+ {[%clk 0:01:27]}  Kxg5 {[%clk 0:02:04]} 31. Bxc8 {[%clk 0:01:27]}  Rxc8 {[%clk 0:02:04]} 32. Rg2+ {[%clk 0:01:27]}  Kf6 {[%clk 0:02:03]} 33. Rg4 {[%clk 0:01:19]}  h3 {[%clk 0:01:34]} 34. Rh4 {[%clk 0:01:15]}  h2 {[%clk 0:01:29]} 35. Rd1 {[%clk 0:01:12]}  Rg8 {[%clk 0:01:28]} 36. Kc2 {[%clk 0:01:04]}  Rg1 {[%clk 0:01:27]} 37. Rh3 {[%clk 0:00:58]}  Kf5 {[%clk 0:01:20]} 38. Rh5+ {[%clk 0:00:56]}  Kg6 {[%clk 0:01:20]} 39. Rh8 {[%clk 0:00:55]}  Rxd1 {[%clk 0:01:14]} 40. Kxd1 {[%clk 0:00:55]}  Kf5 {[%clk 0:01:15]} 41. Kc2 {[%clk 0:00:51]}  e4 {[%clk 0:01:15]} 42. fxe4+ {[%clk 0:00:50]}  Kxe4 {[%clk 0:01:16]} 43. Rh5 {[%clk 0:00:51]}  f5 {[%clk 0:01:16]} 44. b3 {[%clk 0:00:49]}  Be5 {[%clk 0:01:14]} 45. c4 {[%clk 0:00:46]}  bxc4 {[%clk 0:01:14]} 46. bxa4 {[%clk 0:00:44]}  f4 {[%clk 0:01:13]} 47. a5 {[%clk 0:00:44]}  f3 {[%clk 0:01:14]} 48. Rh4+ {[%clk 0:00:42]}  Kxd5 {[%clk 0:01:13]} 49. Kd2 {[%clk 0:00:39]}  c3+ {[%clk 0:01:12]} 50. Kd3 {[%clk 0:00:38]}  f2 {[%clk 0:01:13]} 51. Ke2 {[%clk 0:00:26]}  c2 {[%clk 0:01:13]} 52. a6 {[%clk 0:00:09]}  c1=Q {[%clk 0:01:13]} 53. a7 {[%clk 0:00:10]}  Qe1+ {[%clk 0:01:13]} 54. Kd3 {[%clk 0:00:10]}  f1=Q+ {[%clk 0:01:13]} 55. Kc2 {[%clk 0:00:10]}  Qff2+ {[%clk 0:01:14]} 56. Kb3 {[%clk 0:00:10]}  Qc3+ {[%clk 0:01:14]} 57. Ka4 {[%clk 0:00:09]}  Qxa7+ {[%clk 0:01:15]} 58. Kb5 {[%clk 0:00:09]}  Qcc5# {[%clk 0:01:16]} 0-1


[Site "https://www.chess.com"]